fUST/lending_fUST_20250903
["ID","MTS","AMOUNT","RATE_DAILY","PERIOD"]
[383129108,1756859443015,-40160.71930825,0.00013496,2]
[383129371,1756859445996,-1024.73579726,0.00013496,2]
[383130124,1756860632140,-273.62263705,0.00013488,2]
[383130784,1756860643138,-1990.47823459,0.00013488,2]
[383130785,1756860643148,-632.63629563,0.00013494,2]
[383130786,1756860643157,-114.79518619,0.00013494,2]
[383130798,1756860708424,310.45,0.00012329,2]
[383130799,1756860719397,258.71,0.00012329,2]
[383130800,1756860730090,215.59,0.00012329,2]
[383130801,1756860740819,179.66,0.00012329,2]
[383130802,1756860751609,898.34,0.00012329,2]
[383130804,1756861285674,422.46900437,0.00013396,2]
[383130805,1756861566102,369.66037885,0.00013396,2]
[383130806,1756861786425,500.0,0.00012874,2]
[383130823,1756861832226,-2478.11682452,0.00013487,2]
[383130824,1756861832283,-472.77389258,0.00013487,2]
[383130825,1756861832295,-1002.508,0.00013487,2]
[383130826,1756861832306,-636.16497065,0.00013487,2]
[383130827,1756861832343,-310.43631225,0.00013487,2]
[383130828,1756861832353,-2264.10087164,0.00013488,2]
[383130829,1756861832362,-1200.0,0.00013488,2]
[383130830,1756861832373,-300.0,0.00013489,2]
[383130831,1756861832383,-300.0,0.00013489,2]
[383130832,1756861832392,-300.0,0.00013489,2]
[383130833,1756861832402,-1200.0,0.0001349,2]
[383130834,1756861832412,-2000.0,0.00013491,2]
[383130835,1756861832422,-577.11081207,0.00013493,2]
[383130836,1756861832431,-9884.5850836,0.00013496,2]
[383130837,1756861832441,-582.0348831,0.00013496,2]
[383130838,1756861832451,-2603.00154474,0.00013496,2]
[383130839,1756861832463,-1169.02097899,0.00013496,2]
[383130840,1756861832474,-6571.71570084,0.00013496,2]
[383130982,1756861838286,-800.0,0.00013496,2]
[383131163,1756861840261,-242.76371733,0.00013496,2]
[383131165,1756861840271,-181.70219913,0.00013496,2]
[383131167,1756861840280,-465.62790648,0.00013496,2]
[383131169,1756861840290,-152.010512,0.00013496,2]
[383131171,1756861840298,-181.70219913,0.0001353,2]
[383131173,1756861840308,-2347.87260389,0.00013543,2]
[383131175,1756861840317,-181.70219913,0.00013564,2]
[383131177,1756861840326,-15957.32392579,0.00013596,2]
[383131179,1756861840341,-151.0,0.00013596,2]
[383131181,1756861840351,-151.0,0.00013596,2]
[383131183,1756861840360,-151.0,0.00013596,2]
[383131185,1756861840369,-2434.74389024,0.00013598,2]
[383131187,1756861840379,-3063.089057,0.00013598,2]
[383131189,1756861840387,-181.70219913,0.00013598,2]
[383131191,1756861840397,-1077.92030701,0.00013653,2]
[383131194,1756861840407,-181.08010149,0.0001369,2]
[383131196,1756861840420,-151.0,0.0001369,2]
[383131198,1756861840429,-151.0,0.0001369,2]
[383131200,1756861840438,-151.0,0.0001369,2]
[383131202,1756861840449,-151.0,0.0001369,2]
[383131204,1756861840458,-1852.10998731,0.0001369,2]
[383131206,1756861840468,-158.27277284,0.0001369,2]
[383131208,1756861840477,-151.0,0.0001369,2]
[383131210,1756861840486,-151.0,0.0001369,2]
[383131212,1756861840496,-3000.0,0.00013697,2]
[383131214,1756861840505,-204.48014206,0.00013697,2]
[383131216,1756861840515,-500.0,0.00013697,2]
[383131218,1756861840524,-500.0,0.00013697,2]
[383131220,1756861840533,-500.0,0.00013697,2]
[383131222,1756861840542,-500.0,0.00013697,2]
[383131224,1756861840551,-500.0,0.00013697,2]
[383131226,1756861840561,-500.0,0.00013697,2]
[383131227,1756861840571,-500.0,0.00013697,2]
[383131230,1756861840581,-500.0,0.00013697,2]
[383131232,1756861840590,-500.0,0.00013697,2]
[383131234,1756861840600,-629.81666717,0.00013697,2]
[383131236,1756861840610,-450.0,0.00013697,2]
[383131238,1756861840619,-220.69569103,0.00013697,2]
[383131240,1756861840629,-500.0,0.00013697,2]
[383131242,1756861840639,-300.0,0.00013697,2]
[383131244,1756861840648,-151.0,0.00013697,2]
[383131246,1756861840658,-480.0,0.00013698,2]
[383131248,1756861840667,-480.0,0.00013698,2]
[383131250,1756861840676,-481.87370303,0.00013698,2]
[383131252,1756861840686,-455.5246536,0.00013698,2]
[383131254,1756861840698,-24.4753464,0.00013698,2]
[383131256,1756861840708,-480.0,0.00013698,2]
[383131258,1756861840717,-480.0,0.00013698,2]
[383131260,1756861840726,-233.74391349,0.00013698,2]
[383131262,1756861840738,-246.25608651,0.00013698,2]
[383131264,1756861840749,-480.0,0.00013698,2]
[383131266,1756861840758,-480.0,0.00013698,2]
[383131268,1756861840767,-480.0,0.00013698,2]
[383131270,1756861840777,-480.0,0.00013698,2]
[383131272,1756861840787,-480.0,0.00013698,2]
[383131274,1756861840796,-480.0,0.00013698,2]
[383131276,1756861840805,-343.72900518,0.00013698,2]
[383131279,1756861840815,-480.0,0.00013698,2]
[383131281,1756861840824,-491.92174952,0.00013698,2]
[383131282,1756861840834,-480.0,0.00013698,2]
[383131284,1756861840843,-480.0,0.00013698,2]
[383131287,1756861840854,-480.0,0.00013698,2]
[383131289,1756861840864,-480.0,0.00013698,2]
[383131291,1756861840873,-593.3470703,0.00013698,2]
[383131293,1756861840883,-480.0,0.00013698,2]
[383131295,1756861840892,-200.13968887,0.00013698,2]
[383131297,1756861840901,-480.0,0.00013698,2]
[383131299,1756861840910,-480.0,0.00013698,2]
[383131301,1756861840920,-480.0,0.00013698,2]
[383131303,1756861840929,-527.61312901,0.00013698,2]
[383131305,1756861840939,-480.0,0.00013698,2]
[383131307,1756861840948,-480.0,0.00013698,2]
[383131309,1756861840957,-480.0,0.00013698,2]
[383131311,1756861840966,-480.0,0.00013698,2]
[383131313,1756861840975,-480.0,0.00013698,2]
[383131315,1756861840984,-500.0,0.00013698,2]
[383131316,1756861840994,-500.0,0.00013698,2]
[383131319,1756861841004,-500.0,0.00013698,2]
[383131321,1756861841013,-500.0,0.00013698,2]
[383131323,1756861841023,-500.0,0.00013698,2]
[383131325,1756861841033,-500.0,0.00013698,2]
[383131327,1756861841042,-500.0,0.00013698,2]
[383131329,1756861841051,-500.0,0.00013698,2]
[383131331,1756861841060,-480.0,0.00013698,2]
[383131333,1756861841069,-500.0,0.00013698,2]
[383131335,1756861841078,-500.0,0.00013698,2]
[383131337,1756861841088,-564.7983065,0.00013698,2]
[383131339,1756861841097,-480.0,0.00013698,2]
[383131341,1756861841106,-480.0,0.00013698,2]
[383131343,1756861841116,-480.0,0.00013698,2]
[383131345,1756861841125,-588.45009908,0.00013698,2]
[383131347,1756861841134,-480.0,0.00013698,2]
[383131365,1756861841283,-480.0,0.00013698,2]
[383131367,1756861841295,-480.0,0.00013698,2]
[383131369,1756861841304,-304.76388619,0.00013698,2]
[383131371,1756861841313,-480.0,0.00013698,2]
[383131373,1756861841322,-480.0,0.00013698,2]
[383131375,1756861841334,-480.0,0.00013698,2]
[383131377,1756861841344,-480.0,0.00013698,2]
[383131379,1756861841353,-480.0,0.00013698,2]
[383131381,1756861841362,-480.0,0.00013698,2]
[383131383,1756861841372,-480.0,0.00013698,2]
[383131385,1756861841381,-480.0,0.00013698,2]
[383131387,1756861841390,-480.0,0.00013698,2]
[383131389,1756861841400,-480.0,0.00013698,2]
[383131391,1756861841409,-480.0,0.00013698,2]
[383131393,1756861841419,-480.0,0.00013698,2]
[383131395,1756861841428,-283.44608333,0.00013698,2]
[383131397,1756861841438,-590.68739444,0.00013698,2]
[383131399,1756861841447,-480.0,0.00013698,2]
[383131401,1756861841457,-478.23809356,0.00013698,2]
[383131403,1756861841468,-480.0,0.00013698,2]
[383131405,1756861841477,-480.0,0.00013698,2]
[383131407,1756861841487,-729.27,0.00013698,2]
[383131409,1756861841496,-480.0,0.00013698,2]
[383131411,1756861841506,-480.0,0.00013698,2]
[383131413,1756861841515,-480.0,0.00013698,2]
[383131415,1756861841525,-480.0,0.00013698,2]
[383131417,1756861841534,-480.0,0.00013698,2]
[383131419,1756861841543,-299.371053,0.00013698,2]
[383131421,1756861841552,-480.0,0.00013698,2]
[383131423,1756861841563,-480.0,0.00013698,2]
[383131425,1756861841572,-481.55497359,0.00013698,2]
[383131428,1756861841583,-480.0,0.00013698,2]
[383131430,1756861841592,-480.0,0.00013698,2]
[383131432,1756861841601,-480.0,0.00013698,2]
[383131434,1756861841611,-480.0,0.00013698,2]
[383131436,1756861841620,-480.0,0.00013698,2]
[383131438,1756861841629,-480.0,0.00013698,2]
[383131440,1756861841638,-480.0,0.00013698,2]
[383131442,1756861841647,-483.12789851,0.00013698,2]
[383131444,1756861841657,-480.0,0.00013698,2]
[383131446,1756861841667,-480.0,0.00013698,2]
[383131448,1756861841677,-480.0,0.00013698,2]
[383131450,1756861841687,-480.0,0.00013698,2]
[383131452,1756861841697,-480.0,0.00013698,2]
[383131454,1756861841709,-480.0,0.00013698,2]
[383131456,1756861841718,-480.0,0.00013698,2]
[383131458,1756861841728,-480.0,0.00013698,2]
[383131460,1756861841738,-480.0,0.00013698,2]
[383131462,1756861841747,-480.0,0.00013698,2]
[383131464,1756861841756,-480.0,0.00013698,2]
[383131466,1756861841765,-480.0,0.00013698,2]
[383131468,1756861841774,-481.74619696,0.00013698,2]
[383131470,1756861841784,-151.0,0.00013698,2]
[383131472,1756861841793,-200.17848,0.00013698,2]
[383131474,1756861841803,-480.0,0.00013698,2]
[383131476,1756861841812,-480.0,0.00013698,2]
[383131478,1756861841822,-480.0,0.00013698,2]
[383131480,1756861841831,-480.0,0.00013698,2]
[383131482,1756861841840,-1004.13678423,0.00013698,2]
[383131484,1756861841850,-480.0,0.00013698,2]
[383131486,1756861841860,-480.0,0.00013698,2]
[383131488,1756861841869,-482.8829491,0.00013698,2]
[383131490,1756861841878,-480.0,0.00013698,2]
[383131492,1756861841888,-480.0,0.00013698,2]
[383131494,1756861841897,-480.0,0.00013698,2]
[383131496,1756861841906,-480.0,0.00013698,2]
[383131498,1756861841915,-480.0,0.00013698,2]
[383131500,1756861841925,-480.0,0.00013698,2]
[383131502,1756861841934,-251.48425016,0.00013698,2]
[383131504,1756861841943,-480.0,0.00013698,2]
[383131506,1756861841953,-480.0,0.00013698,2]
[383131508,1756861841962,-480.91679477,0.00013698,2]
[383131510,1756861841971,-480.0,0.00013698,2]
[383131512,1756861841980,-480.0,0.00013698,2]
[383131514,1756861841990,-480.0,0.00013698,2]
[383131516,1756861842000,-480.0,0.00013698,2]
[383131519,1756861842011,-379.90111321,0.00013698,2]
[383131521,1756861842020,-480.0,0.00013698,2]
[383131523,1756861842030,-480.0,0.00013698,2]
[383131525,1756861842039,-480.0,0.00013698,2]
[383131527,1756861842048,-480.0,0.00013698,2]
[383131529,1756861842057,-480.0,0.00013698,2]
[383131531,1756861842066,-480.0,0.00013698,2]
[383131533,1756861842075,-480.0,0.00013698,2]
[383131535,1756861842084,-480.0,0.00013698,2]
[383131537,1756861842094,-480.0,0.00013698,2]
[383131539,1756861842103,-480.0,0.00013698,2]
[383131541,1756861842112,-480.0,0.00013698,2]
[383131543,1756861842122,-480.0,0.00013698,2]
[383131545,1756861842131,-548.01162209,0.00013698,2]
[383131547,1756861842140,-480.0,0.00013698,2]
[383131549,1756861842148,-480.0,0.00013698,2]
[383131551,1756861842158,-480.67937278,0.00013698,2]
[383131553,1756861842167,-480.0,0.00013698,2]
[383131555,1756861842176,-480.0,0.00013698,2]
[383131557,1756861842186,-480.0,0.00013698,2]
[383131559,1756861842196,-480.0,0.00013698,2]
[383131561,1756861842206,-480.0,0.00013698,2]
[383131563,1756861842217,-480.0,0.00013698,2]
[383131565,1756861842226,-480.0,0.00013698,2]
[383131567,1756861842235,-482.96841881,0.00013698,2]
[383131569,1756861842245,-480.0,0.00013698,2]
[383131571,1756861842254,-480.0,0.00013698,2]
[383131573,1756861842264,-482.84796201,0.00013698,2]
[383131575,1756861842273,-480.0,0.00013698,2]
[383131577,1756861842282,-480.0,0.00013698,2]
[383131579,1756861842292,-481.84530121,0.00013698,2]
[383131581,1756861842302,-480.0,0.00013698,2]
[383131583,1756861842311,-480.0,0.00013698,2]
[383131585,1756861842321,-480.0,0.00013698,2]
[383131587,1756861842333,-480.0,0.00013698,2]
[383131589,1756861842343,-480.0,0.00013698,2]
[383131591,1756861842352,-481.3475949,0.00013698,2]
[383131593,1756861842361,-480.0,0.00013698,2]
[383131595,1756861842372,-480.0,0.00013698,2]
[383131597,1756861842381,-480.0,0.00013698,2]
[383131599,1756861842390,-480.0,0.00013698,2]
[383131601,1756861842399,-480.0,0.00013698,2]
[383131603,1756861842410,-481.41009471,0.00013698,2]
[383131605,1756861842420,-480.0,0.00013698,2]
[383131607,1756861842430,-368.80140966,0.00013698,2]
[383131609,1756861842441,-312.55573202,0.00013698,2]
[383131611,1756861842450,-482.01963631,0.00013698,2]
[383131613,1756861842460,-481.96148247,0.00013698,2]
[383131615,1756861842469,-480.0,0.00013698,2]
[383131617,1756861842479,-480.0,0.00013698,2]
[383131619,1756861842488,-480.0,0.00013698,2]
[383131621,1756861842498,-185.59470109,0.00013698,2]
[383131623,1756861842508,-394.88723547,0.00013698,2]
[383131625,1756861842517,-480.0,0.00013698,2]
[383131627,1756861842526,-196.14632991,0.00013698,2]
[383131629,1756861842536,-480.0,0.00013698,2]
[383131631,1756861842546,-480.0,0.00013698,2]
[383131633,1756861842557,-480.0,0.00013698,2]
[383131635,1756861842567,-480.0,0.00013698,2]
[383131637,1756861842577,-480.0,0.00013698,2]
[383131640,1756861842589,-480.0,0.00013698,2]
[383131641,1756861842598,-480.0,0.00013698,2]
[383131643,1756861842609,-480.39668907,0.00013698,2]
[383131646,1756861842619,-480.0,0.00013698,2]
[383131648,1756861842628,-482.87387624,0.00013698,2]
[383131650,1756861842639,-480.0,0.00013698,2]
[383131652,1756861842648,-482.26216545,0.00013698,2]
[383131654,1756861842658,-480.0,0.00013698,2]
[383131656,1756861842668,-482.80527899,0.00013698,2]
[383131658,1756861842678,-480.0,0.00013698,2]
[383131660,1756861842687,-480.0,0.00013698,2]
[383131662,1756861842696,-551.34257114,0.00013698,2]
[383131664,1756861842706,-480.0,0.00013698,2]
[383131666,1756861842716,-226.92790006,0.00013698,2]
[383131668,1756861842725,-482.30288173,0.00013698,2]
[383131670,1756861842735,-480.0,0.00013698,2]
[383131672,1756861842744,-480.71232644,0.00013698,2]
[383131674,1756861842754,-455.76588376,0.00013698,2]
[383131676,1756861842764,-480.0,0.00013698,2]
[383131678,1756861842773,-480.0,0.00013698,2]
[383131680,1756861842783,-480.0,0.00013698,2]
[383131682,1756861842792,-480.0,0.00013698,2]
[383131684,1756861842802,-480.0,0.00013698,2]
[383131686,1756861842811,-480.0,0.00013698,2]
[383131688,1756861842821,-480.0,0.00013698,2]
[383131691,1756861842830,-480.0,0.00013698,2]
[383131693,1756861842839,-480.0,0.00013698,2]
[383131695,1756861842849,-236.93270534,0.00013698,2]
[383131697,1756861842859,-481.91198476,0.00013698,2]
[383131699,1756861842869,-480.0,0.00013698,2]
[383131701,1756861842879,-480.0,0.00013698,2]
[383131703,1756861842889,-480.0,0.00013698,2]
[383131705,1756861842899,-480.0,0.00013698,2]
[383131707,1756861842909,-480.0,0.00013698,2]
[383131709,1756861842919,-480.0,0.00013698,2]
[383131711,1756861842929,-480.0,0.00013698,2]
[383131713,1756861842939,-480.0,0.00013698,2]
[383131715,1756861842949,-481.234256,0.00013698,2]
[383131717,1756861842959,-480.0,0.00013698,2]
[383131719,1756861842969,-483.90286577,0.00013698,2]
[383131721,1756861842979,-480.0,0.00013698,2]
[383131723,1756861842989,-480.0,0.00013698,2]
[383131725,1756861842999,-480.0,0.00013698,2]
[383131727,1756861843010,-462.25063924,0.00013698,2]
[383131729,1756861843020,-480.0,0.00013698,2]
[383131730,1756861843030,-480.0,0.00013698,2]
[383131732,1756861843040,-483.93589131,0.00013698,2]
[383131734,1756861843050,-480.0,0.00013698,2]
[383131736,1756861843060,-480.0,0.00013698,2]
[383131738,1756861843069,-480.0,0.00013698,2]
[383131740,1756861843079,-482.17376538,0.00013698,2]
[383131742,1756861843089,-480.0,0.00013698,2]
[383131744,1756861843098,-480.0,0.00013698,2]
[383131746,1756861843108,-480.0,0.00013698,2]
[383131748,1756861843117,-474.03088596,0.00013698,2]
[383131750,1756861843127,-481.17422001,0.00013698,2]
[383131752,1756861843137,-480.0,0.00013698,2]
[383131754,1756861843147,-481.07190847,0.00013698,2]
[383131756,1756861843156,-480.0,0.00013698,2]
[383131758,1756861843165,-480.0,0.00013698,2]
[383131760,1756861843174,-480.0,0.00013698,2]
[383131762,1756861843184,-480.0,0.00013698,2]
[383131764,1756861843193,-480.0,0.00013698,2]
[383131766,1756861843202,-480.0,0.00013698,2]
[383131768,1756861843212,-480.0,0.00013698,2]
[383131770,1756861843221,-480.0,0.00013698,2]
[383131772,1756861843231,-480.0,0.00013698,2]
[383131774,1756861843240,-480.0,0.00013698,2]
[383131776,1756861843250,-480.0,0.00013698,2]
[383131778,1756861843259,-480.0,0.00013698,2]
[383131780,1756861843269,-483.56948719,0.00013698,2]
[383131782,1756861843279,-487.82276459,0.00013698,2]
[383131784,1756861843288,-480.0,0.00013698,2]
[383131786,1756861843298,-480.0,0.00013698,2]
[383131788,1756861843307,-480.0,0.00013698,2]
[383131791,1756861843318,-480.0,0.00013698,2]
[383131793,1756861843328,-480.0,0.00013698,2]
[383131794,1756861843340,-481.86256984,0.00013698,2]
[383131797,1756861843350,-480.0,0.00013698,2]
[383131799,1756861843359,-480.0,0.00013698,2]
[383131801,1756861843369,-483.21123207,0.00013698,2]
[383131803,1756861843380,-480.0,0.00013698,2]
[383131805,1756861843390,-480.0,0.00013698,2]
[383131807,1756861843399,-480.0,0.00013698,2]
[383131809,1756861843409,-480.0,0.00013698,2]
[383131811,1756861843421,-480.73214017,0.00013698,2]
[383131813,1756861843430,-480.7767452,0.00013698,2]
[383131815,1756861843440,-480.0,0.00013698,2]
[383131817,1756861843450,-480.91975508,0.00013698,2]
[383131819,1756861843459,-151.0,0.00013698,2]
[383131822,1756861843468,-198.0,0.00013698,2]
[383131824,1756861843478,-151.0,0.00013698,2]
[383131826,1756861843488,-480.0,0.00013698,2]
[383131828,1756861843498,-480.0,0.00013698,2]
[383131831,1756861843507,-151.0,0.00013698,2]
[383131834,1756861843516,-481.32191289,0.00013698,2]
[383131837,1756861843527,-500.0,0.00013698,2]
[383131840,1756861843536,-151.0,0.00013698,2]
[383131843,1756861843545,-480.0,0.00013698,2]
[383131845,1756861843555,-480.0,0.00013698,2]
[383131847,1756861843565,-480.0,0.00013698,2]
[383131849,1756861843575,-480.0,0.00013698,2]
[383131851,1756861843584,-480.0,0.00013698,2]
[383131853,1756861843594,-480.0,0.00013698,2]
[383131855,1756861843604,-480.0,0.00013698,2]
[383131857,1756861843614,-480.0,0.00013698,2]
[383131859,1756861843624,-480.0,0.00013698,2]
[383131861,1756861843634,-621.27725061,0.00013698,2]
[383131863,1756861843644,-480.0,0.00013698,2]
[383131865,1756861843654,-480.0,0.00013698,2]
[383131867,1756861843664,-480.0,0.00013698,2]
[383131869,1756861843673,-481.95023667,0.00013698,2]
[383131871,1756861843684,-153.53683522,0.00013698,2]
[383131887,1756861843876,-326.46316478,0.00013698,2]
[383131888,1756861843886,-458.88848902,0.00013698,2]
[383131889,1756861843897,-21.11151098,0.00013698,2]
[383131890,1756861843906,-480.0,0.00013698,2]
[383131891,1756861843916,-480.0,0.00013698,2]
[383131892,1756861843925,-480.19893468,0.00013698,2]
[383131893,1756861843934,-480.0,0.00013698,2]
[383131894,1756861843943,-480.0,0.00013698,2]
[383131895,1756861843953,-480.0,0.00013698,2]
[383131896,1756861843962,-480.0,0.00013698,2]
[383131897,1756861843970,-480.0,0.00013698,2]
[383131898,1756861843979,-480.0,0.00013698,2]
[383131899,1756861843988,-480.0,0.00013698,2]
[383131900,1756861843997,-1599.01,0.00013698,2]
[383131901,1756861844007,-480.0,0.00013698,2]
[383131902,1756861844015,-672.82,0.00013698,2]
[383131903,1756861844024,-480.0,0.00013698,2]
[383131904,1756861844033,-483.11030921,0.00013698,2]
[383131905,1756861844042,-480.0,0.00013698,2]
[383131906,1756861844051,-480.0,0.00013698,2]
[383131907,1756861844061,-480.0,0.00013698,2]
[383131908,1756861844070,-482.4663229,0.00013698,2]
[383131909,1756861844079,-480.0,0.00013698,2]
[383131910,1756861844089,-489.56633629,0.00013698,2]
[383131911,1756861844098,-480.0,0.00013698,2]
[383131912,1756861844107,-480.0,0.00013698,2]
[383131913,1756861844116,-542.36,0.00013698,2]
[383131914,1756861844125,-480.0,0.00013698,2]
[383131915,1756861844135,-480.0,0.00013698,2]
[383131917,1756861844145,-480.0,0.00013698,2]
[383131919,1756861844154,-480.0,0.00013698,2]
[383131921,1756861844164,-480.0,0.00013698,2]
[383131923,1756861844173,-480.0,0.00013698,2]
[383131925,1756861844183,-480.0,0.00013698,2]
[383131926,1756861844193,-393.98411297,0.00013698,2]
[383131928,1756861844202,-480.0,0.00013698,2]
[383131930,1756861844212,-282.91472421,0.00013698,2]
[383131932,1756861844221,-480.0,0.00013698,2]
[383131934,1756861844230,-481.88689076,0.00013698,2]
[383131936,1756861844239,-480.0,0.00013698,2]
[383131938,1756861844249,-480.0,0.00013698,2]
[383131940,1756861844258,-480.0,0.00013698,2]
[383131942,1756861844267,-480.0,0.00013698,2]
[383131944,1756861844277,-480.0,0.00013698,2]
[383131946,1756861844286,-480.0,0.00013698,2]
[383131948,1756861844295,-480.0,0.00013698,2]
[383131950,1756861844305,-480.0,0.00013698,2]
[383131952,1756861844314,-480.0,0.00013698,2]
[383131954,1756861844323,-480.0,0.00013698,2]
[383131956,1756861844336,-1117.5,0.00013698,2]
[383131958,1756861844346,-480.0,0.00013698,2]
[383131960,1756861844355,-480.0,0.00013698,2]
[383131962,1756861844364,-480.0,0.00013698,2]
[383131964,1756861844374,-480.0,0.00013698,2]
[383131966,1756861844383,-1750.92,0.00013698,2]
[383131968,1756861844392,-480.0,0.00013698,2]
[383131970,1756861844402,-480.0,0.00013698,2]
[383131972,1756861844412,-480.0,0.00013698,2]
[383131974,1756861844422,-480.0,0.00013698,2]
[383131976,1756861844432,-483.3974698,0.00013698,2]
[383131978,1756861844442,-480.0,0.00013698,2]
[383131980,1756861844451,-480.0,0.00013698,2]
[383131982,1756861844461,-480.0,0.00013698,2]
[383131984,1756861844470,-481.06472475,0.00013698,2]
[383131986,1756861844480,-480.0,0.00013698,2]
[383131988,1756861844490,-360.3000059,0.00013698,2]
[383131990,1756861844500,-480.0,0.00013698,2]
[383131992,1756861844509,-480.0,0.00013698,2]
[383131994,1756861844519,-480.0,0.00013698,2]
[383131996,1756861844529,-480.0,0.00013698,2]
[383131998,1756861844540,-1444.06,0.00013698,2]
[383132000,1756861844550,-482.29695022,0.00013698,2]
[383132002,1756861844559,-480.0,0.00013698,2]
[383132004,1756861844570,-480.0,0.00013698,2]
[383132019,1756861844699,-500.94,0.00013698,2]
[383132021,1756861844710,-480.0,0.00013698,2]
[383132023,1756861844720,-480.0,0.00013698,2]
[383132025,1756861844730,-480.0,0.00013698,2]
[383132027,1756861844739,-845.84,0.00013698,2]
[383132029,1756861844749,-480.0,0.00013698,2]
[383132031,1756861844759,-883.78,0.00013698,2]
[383132033,1756861844768,-480.0,0.00013698,2]
[383132035,1756861844777,-480.0,0.00013698,2]
[383132037,1756861844787,-480.0,0.00013698,2]
[383132039,1756861844797,-480.0,0.00013698,2]
[383132041,1756861844806,-480.0,0.00013698,2]
[383132043,1756861844815,-481.34687124,0.00013698,2]
[383132045,1756861844825,-480.0,0.00013698,2]
[383132047,1756861844835,-480.0,0.00013698,2]
[383132070,1756861845052,-480.0,0.00013698,2]
[383132072,1756861845062,-480.0,0.00013698,2]
[383132074,1756861845072,-480.0,0.00013698,2]
[383132076,1756861845082,-480.0,0.00013698,2]
[383132078,1756861845091,-480.0,0.00013698,2]
[383132080,1756861845100,-1344.85,0.00013698,2]
[383132082,1756861845110,-480.0,0.00013698,2]
[383132084,1756861845120,-616.78250836,0.00013698,2]
[383132086,1756861845130,-480.0,0.00013698,2]
[383132088,1756861845141,-480.0,0.00013698,2]
[383132090,1756861845150,-480.0,0.00013698,2]
[383132092,1756861845159,-328.94142206,0.00013698,2]
[383132094,1756861845169,-480.0,0.00013698,2]
[383132096,1756861845178,-480.0,0.00013698,2]
[383132098,1756861845187,-480.0,0.00013698,2]
[383132100,1756861845196,-480.0,0.00013698,2]
[383132101,1756861845205,-480.0,0.00013698,2]
[383132103,1756861845214,-480.0,0.00013698,2]
[383132105,1756861845223,-480.0,0.00013698,2]
[383132107,1756861845232,-696.69,0.00013698,2]
[383132109,1756861845242,-480.0,0.00013698,2]
[383132111,1756861845251,-480.0,0.00013698,2]
[383132113,1756861845261,-480.0,0.00013698,2]
[383132115,1756861845271,-481.0892062,0.00013698,2]
[383132117,1756861845281,-480.0,0.00013698,2]
[383132119,1756861845291,-480.82976688,0.00013698,2]
[383132121,1756861845301,-480.0,0.00013698,2]
[383132123,1756861845311,-480.0,0.00013698,2]
[383132125,1756861845322,-480.0,0.00013698,2]
[383132127,1756861845332,-480.0,0.00013698,2]
[383132129,1756861845344,-480.0,0.00013698,2]
[383132131,1756861845353,-480.0,0.00013698,2]
[383132133,1756861845363,-480.0,0.00013698,2]
[383132135,1756861845372,-480.0,0.00013698,2]
[383132137,1756861845382,-480.0,0.00013698,2]
[383132139,1756861845391,-497.25,0.00013698,2]
[383132141,1756861845401,-480.0,0.00013698,2]